bitfinex/quotes_BTCUSD_20241009
["timestamp","ask_amount","ask_price","bid_price","bid_amount"]
[1728435182846,0.22569071,62130.0,62129.0,0.010642]
[1728435183048,0.23773414,62130.0,62129.0,0.010642]
[1728435184512,0.07678214,62130.0,62129.0,0.010642]
[1728435184718,0.05546904,62130.0,62129.0,0.171597]
[1728435184950,0.05218459,62130.0,62129.0,0.171597]
[1728435185380,0.05546904,62130.0,62129.0,0.171597]
[1728435188485,0.05547045,62130.0,62129.0,0.171597]
[1728435189003,0.01632929,62130.0,62129.0,0.171597]
[1728435189180,0.06751986,62130.0,62129.0,0.171597]
[1728435189583,0.06751986,62130.0,62129.0,0.010642]
[1728435189584,0.05547502,62130.0,62129.0,0.010642]
[1728435190240,0.07761732,62130.0,62129.0,0.010642]
[1728435190617,0.07761732,62130.0,62129.0,0.171597]
[1728435190618,0.05547502,62130.0,62129.0,0.171597]
[1728435191229,0.05547502,62130.0,62129.0,0.010642]
[1728435191444,0.21633518,62130.0,62129.0,0.010642]
[1728435191682,0.05538318,62130.0,62129.0,0.010642]
[1728435192439,0.05538467,62130.0,62129.0,0.010642]
[1728435193117,0.05538467,62130.0,62129.0,0.171597]
[1728435193767,0.09361134,62130.0,62129.0,0.010642]
[1728435194426,0.25456334,62130.0,62129.0,0.010642]
[1728435196833,0.25795529,62130.0,62129.0,0.010642]
[1728435199261,0.21880956,62130.0,62129.0,0.010642]
[1728435199470,0.23388244,62130.0,62129.0,0.010642]
[1728435200306,0.25798791,62130.0,62129.0,0.010642]
[1728435200763,0.24593461,62130.0,62129.0,0.010642]
[1728435201383,0.25798743,62130.0,62129.0,0.010642]
[1728435204603,0.51460892,62130.0,62129.0,0.010642]
[1728435204823,0.58688999,62130.0,62129.0,0.010642]
[1728435205041,0.55412096,62130.0,62129.0,0.010642]
[1728435205274,0.55412096,62130.0,62125.0,0.001642]
[1728435205275,0.63151673,62126.0,62125.0,0.001642]
[1728435205507,0.82609455,62126.0,62125.0,0.001642]
[1728435205722,0.88213815,62126.0,62125.0,0.001642]
[1728435205937,0.89413855,62126.0,62125.0,0.001642]
[1728435206154,1.03857006,62126.0,62125.0,0.001642]
[1728435206363,1.03857006,62126.0,62120.0,0.001642]
[1728435206364,0.62682973,62121.0,62120.0,0.001642]
[1728435206580,0.88256163,62121.0,62120.0,0.001642]
[1728435206800,0.88404043,62121.0,62120.0,0.001642]
[1728435207237,1.00432055,62121.0,62120.0,0.001642]
[1728435207434,0.82235877,62121.0,62120.0,0.001642]
[1728435207642,1.16312594,62121.0,62120.0,0.001642]
[1728435207857,0.82235877,62121.0,62120.0,0.001642]
[1728435208088,0.82235877,62121.0,62120.0,0.002642]
[1728435208089,0.58243302,62121.0,62120.0,0.002642]
[1728435208291,0.58236694,62121.0,62120.0,0.002642]
[1728435208697,0.58575889,62121.0,62120.0,0.002642]
[1728435209133,0.58575889,62121.0,62120.0,0.003642]
[1728435209134,0.59136694,62121.0,62120.0,0.003642]
[1728435209347,0.74678038,62121.0,62120.0,0.003642]
[1728435209583,0.74678038,62121.0,62120.0,0.001642]
[1728435209584,0.72878038,62121.0,62120.0,0.001642]
[1728435209787,0.72878038,62121.0,62120.0,0.002642]
[1728435210006,0.73978038,62121.0,62120.0,0.002642]
[1728435210219,0.73978038,62121.0,62120.0,0.001642]
[1728435210453,0.75678038,62121.0,62120.0,0.003642]
[1728435211759,0.55938038,62121.0,62120.0,0.003642]
[1728435212191,0.55038038,62121.0,62120.0,0.002642]
[1728435212609,0.55638038,62121.0,62120.0,0.003642]
[1728435213738,0.40096694,62121.0,62120.0,0.003642]
[1728435215067,0.0795775,62121.0,62120.0,0.003642]
[1728435215289,0.0795775,62121.0,62120.0,0.16462]
[1728435216166,0.0795775,62121.0,62120.0,0.16262]
[1728435216167,0.0625775,62121.0,62120.0,0.16262]
[1728435216401,0.0625775,62121.0,62120.0,0.40387064]
[1728435216402,0.0545775,62121.0,62120.0,0.40387064]
[1728435216617,0.0545775,62121.0,62120.0,0.16362]
[1728435216618,0.0605775,62121.0,62120.0,0.16362]
[1728435216806,0.0570987,62121.0,62120.0,0.16362]
[1728435217063,0.0570987,62121.0,62120.0,0.16862]
[1728435217494,0.0510987,62121.0,62120.0,0.16762]
[1728435217925,0.0510987,62121.0,62120.0,0.33502]
[1728435218397,0.100821,62136.0,62120.0,0.33502]
[1728435218398,0.000821,62136.0,62131.0,0.0761]
[1728435218611,0.160944,62134.0,62131.0,0.0761]
[1728435219047,0.00334621,62133.0,62132.0,0.160947]
[1728435219258,0.01536348,62133.0,62131.0,0.0761]
[1728435219481,0.000821,62136.0,62131.0,0.23705]
[1728435219482,0.01201727,62132.0,62131.0,0.23705]
[1728435219724,0.01536036,62132.0,62131.0,0.23805]
[1728435219931,0.01201727,62132.0,62131.0,0.23805]
[1728435220149,0.01201727,62132.0,62131.0,0.23705]
[1728435220394,0.01201727,62132.0,62131.0,0.63371408]
[1728435220745,0.005,62133.0,62131.0,0.32951344]
[1728435220840,0.01701938,62133.0,62132.0,0.482837]
[1728435221092,0.01702018,62133.0,62132.0,0.482837]
[1728435221737,0.01701862,62133.0,62132.0,0.482837]
[1728435221954,0.01201862,62133.0,62132.0,0.482837]
[1728435223004,0.01201862,62133.0,62132.0,0.486837]
[1728435223885,0.01201862,62133.0,62132.0,0.493837]
[1728435224134,0.000821,62136.0,62135.0,0.160939]
[1728435224343,0.01283402,62136.0,62135.0,0.160939]
[1728435224602,0.08428618,62136.0,62135.0,0.160939]
[1728435225063,0.07227316,62136.0,62133.0,0.321889]
[1728435225308,0.08428591,62136.0,62135.0,0.161939]
[1728435225562,0.10830526,62136.0,62135.0,0.161939]
[1728435225835,0.10830526,62136.0,62135.0,0.165939]
[1728435226100,0.10830526,62136.0,62135.0,0.160939]
[1728435226979,0.10830526,62136.0,62135.0,0.164939]
[1728435227196,0.10830526,62136.0,62135.0,0.004]
[1728435227650,0.08428386,62136.0,62135.0,0.004]
[1728435228054,0.08428386,62136.0,62135.0,0.005]
[1728435229843,0.01618729,62136.0,62135.0,0.165939]
[1728435230267,0.0128317,62136.0,62135.0,0.165939]
[1728435230698,0.0161925,62136.0,62135.0,0.165939]
[1728435230959,0.0161925,62136.0,62135.0,0.005]
[1728435232274,0.0041818,62136.0,62135.0,0.005]
[1728435232913,0.0161869,62136.0,62135.0,0.005]
[1728435233328,0.08461916,62136.0,62135.0,0.005]
[1728435234908,0.08461916,62136.0,62135.0,0.165939]
[1728435235120,0.0161869,62136.0,62135.0,0.165939]
[1728435235776,0.0041818,62136.0,62135.0,0.165939]
[1728435235985,0.01618354,62136.0,62135.0,0.165939]
[1728435236200,0.0041818,62136.0,62135.0,0.165939]
[1728435236629,0.01618354,62136.0,62135.0,0.005]
[1728435236823,0.01618354,62136.0,62135.0,0.165939]
[1728435237292,0.01282274,62136.0,62135.0,0.165939]
[1728435238728,0.03684566,62136.0,62135.0,0.165939]
[1728435238950,0.04020649,62136.0,62135.0,0.165939]
[1728435239159,0.03684566,62136.0,62135.0,0.165939]
[1728435239578,0.01282274,62136.0,62135.0,0.165939]
[1728435239784,0.01282274,62136.0,62135.0,0.248939]
[1728435240200,0.000821,62136.0,62135.0,0.248939]
[1728435240636,0.000821,62136.0,62135.0,0.343139]
[1728435240879,0.000821,62136.0,62135.0,0.62355244]
[1728435241360,0.000821,62136.0,62135.0,0.62155244]
[1728435241792,0.000821,62136.0,62135.0,0.443139]
[1728435242010,0.000821,62136.0,62135.0,0.348939]
[1728435242242,0.000821,62136.0,62135.0,0.343939]
[1728435242461,0.000821,62136.0,62135.0,0.260939]
[1728435242939,0.000821,62136.0,62135.0,0.255939]
[1728435243187,0.000821,62136.0,62135.0,0.269939]
[1728435243847,0.000821,62136.0,62135.0,0.257939]
[1728435244322,0.000821,62136.0,62135.0,0.270939]
[1728435246696,0.01286174,62136.0,62135.0,0.270939]
[1728435249994,0.13443727,62136.0,62135.0,0.270939]
[1728435250211,0.12239653,62136.0,62135.0,0.270939]
[1728435250399,0.14667869,62136.0,62135.0,0.270939]
[1728435250663,0.17076496,62136.0,62135.0,0.270939]
[1728435251332,0.15852531,62136.0,62135.0,0.270939]
[1728435251576,0.03694978,62136.0,62135.0,0.270939]
[1728435252254,0.03694978,62136.0,62135.0,0.187939]
[1728435252255,0.15852531,62136.0,62135.0,0.187939]
[1728435252700,0.16205806,62136.0,62135.0,0.187939]
[1728435253395,0.19435677,62136.0,62135.0,0.187939]
[1728435253631,0.15822799,62136.0,62135.0,0.187939]
[1728435253850,0.15822799,62136.0,62135.0,0.027]
[1728435253851,0.34325216,62136.0,62135.0,0.027]
[1728435254081,0.18231516,62136.0,62135.0,0.027]
[1728435254292,0.02844092,62136.0,62135.0,0.270739]
[1728435254524,0.04048477,62136.0,62135.0,0.270739]
[1728435254733,0.03695202,62136.0,62135.0,0.257739]
[1728435254955,0.03695202,62136.0,62135.0,0.260739]
[1728435255168,0.03695202,62136.0,62135.0,0.177939]
[1728435255402,0.03695202,62136.0,62135.0,0.017]
[1728435255403,0.05280478,62136.0,62135.0,0.017]
[1728435255615,0.03695202,62136.0,62135.0,0.017]
[1728435255826,0.04048477,62136.0,62135.0,0.177939]
[1728435256039,0.04048477,62136.0,62135.0,0.163939]
[1728435256251,0.0827136,62136.0,62135.0,0.160939]
[1728435256471,0.0827136,62136.0,62135.0,0.166939]
[1728435256722,0.0837136,62136.0,62135.0,0.166939]
[1728435256944,0.0837136,62136.0,62135.0,0.160939]
[1728435257166,0.0827234,62136.0,62135.0,0.162939]
[1728435257382,0.04149457,62136.0,62135.0,0.238739]
[1728435257798,0.01386485,62136.0,62135.0,0.238739]
[1728435258807,0.03796485,62136.0,62135.0,0.238739]
[1728435260301,0.01386485,62136.0,62135.0,0.238739]
[1728435260512,0.03796699,62136.0,62135.0,0.238739]
[1728435260723,0.05001807,62136.0,62135.0,0.238739]
[1728435260927,0.03797422,62136.0,62135.0,0.238739]
[1728435263881,0.02592314,62136.0,62135.0,0.238739]
[1728435264121,0.03797627,62136.0,62135.0,0.238739]
[1728435265753,0.03697627,62136.0,62135.0,0.236739]
[1728435265962,0.03797627,62136.0,62135.0,0.236739]
[1728435266201,0.03797627,62136.0,62135.0,0.60244588]
[1728435266441,0.000821,62136.0,62135.0,0.79844588]
[1728435266681,0.001821,62136.0,62135.0,0.93304139]
[1728435266908,0.001821,62136.0,62135.0,0.82544588]
[1728435267385,0.000821,62136.0,62135.0,0.79844588]
[1728435267852,0.006821,62136.0,62135.0,0.92003381]
[1728435268281,0.006821,62136.0,62135.0,0.6876127]
[1728435268495,0.006821,62136.0,62135.0,0.337739]
[1728435268720,0.006821,62136.0,62135.0,0.41008282]
[1728435268928,0.009821,62136.0,62135.0,0.41008282]
[1728435269136,0.009821,62136.0,62135.0,0.41008356]
[1728435269349,0.006821,62136.0,62135.0,0.41008356]
[1728435269564,0.000821,62136.0,62135.0,0.40908356]
[1728435269830,0.005821,62136.0,62135.0,0.41008356]
[1728435270074,0.002821,62136.0,62135.0,0.41008356]
[1728435270281,0.0269225,62136.0,62135.0,0.28596675]
[1728435270485,0.04397263,62136.0,62135.0,0.28696675]
[1728435271999,0.04397263,62136.0,62135.0,0.72767363]
[1728435272236,0.007821,62136.0,62135.0,0.75179044]
[1728435272443,0.007821,62136.0,62135.0,0.70444588]
[1728435273636,0.007821,62136.0,62135.0,0.70244588]
[1728435274427,0.007821,62136.0,62135.0,0.79704588]
[1728435274836,0.007821,62136.0,62135.0,0.91760577]
[1728435275043,0.007821,62136.0,62135.0,0.79704588]
[1728435275444,0.007821,62136.0,62135.0,0.79504588]
[1728435275885,0.007821,62136.0,62135.0,0.79704588]
[1728435276482,0.007821,62136.0,62135.0,0.73328067]
[1728435277261,0.000821,62136.0,62135.0,0.73128067]
[1728435277433,0.011821,62136.0,62135.0,0.82871303]
[1728435277643,0.011821,62136.0,62135.0,0.73028067]
[1728435278483,0.011821,62136.0,62135.0,0.85082369]
[1728435278913,0.011821,62136.0,62135.0,0.85081769]
[1728435279129,0.011821,62136.0,62135.0,0.51615244]
[1728435279130,0.008821,62136.0,62135.0,0.51615244]
[1728435279344,0.01588292,62136.0,62135.0,0.49215244]
[1728435279564,0.01588292,62136.0,62135.0,0.5644788]
[1728435279565,0.01888292,62136.0,62135.0,0.5644788]
[1728435279769,0.01888292,62136.0,62135.0,0.5654788]
[1728435279770,0.02688292,62136.0,62135.0,0.5654788]
[1728435280014,0.01588292,62136.0,62135.0,0.23326536]
[1728435280229,0.05267175,62136.0,62135.0,0.001]
[1728435280458,0.22211063,62136.0,62135.0,0.002]
[1728435280675,0.22211063,62136.0,62135.0,0.001]
[1728435280676,0.21111063,62136.0,62135.0,0.001]
[1728435280913,0.30331063,62136.0,62135.0,0.001]
[1728435281121,0.30331063,62136.0,62135.0,0.004]
[1728435281759,0.29831063,62136.0,62135.0,0.003]
[1728435281966,0.29831063,62136.0,62135.0,0.014]
[1728435282451,0.29831063,62136.0,62131.0,0.40219964]
[1728435282647,0.02710609,62135.0,62131.0,0.40219964]
[1728435282854,0.03060612,62134.0,62131.0,0.40219964]
[1728435283060,0.02710609,62133.0,62131.0,0.40219964]
[1728435283274,0.02710609,62132.0,62131.0,0.160949]
[1728435283492,0.03059831,62132.0,62131.0,0.160949]
[1728435283721,0.00349222,62132.0,62131.0,0.173949]
[1728435283977,0.00349222,62132.0,62131.0,0.334897]
[1728435283978,0.01505646,62132.0,62131.0,0.334897]
[1728435284204,0.01505646,62132.0,62131.0,0.486847]
[1728435284431,0.03059142,62132.0,62131.0,0.486847]
[1728435285097,0.03059142,62132.0,62131.0,0.482847]
[1728435285308,0.03059142,62132.0,62131.0,0.490847]
[1728435285520,0.03159142,62132.0,62131.0,0.502847]
[1728435285737,0.02810163,62132.0,62131.0,0.494847]
[1728435285973,0.03059048,62132.0,62131.0,0.558947]
[1728435286168,0.03059048,62132.0,62131.0,0.87659274]
[1728435286169,0.01605646,62132.0,62131.0,0.87659274]
[1728435286395,0.01605646,62132.0,62131.0,0.92482505]
[1728435286396,0.001,62132.0,62131.0,0.92482505]
[1728435286615,0.001,62132.0,62131.0,0.82836044]
[1728435286815,0.001,62132.0,62131.0,0.9739412]
[1728435287024,0.000821,62136.0,62135.0,0.160939]
[1728435287244,0.01587937,62136.0,62135.0,0.36457051]
[1728435289447,0.01587937,62136.0,62135.0,0.31635244]
[1728435289908,0.01587937,62136.0,62135.0,0.36457635]
[1728435290527,0.01587937,62136.0,62135.0,0.39775244]
[1728435290744,0.01588139,62136.0,62135.0,0.49418858]
[1728435290975,0.01588139,62136.0,62135.0,0.42075244]
[1728435291199,0.01588139,62136.0,62135.0,0.7569332]
[1728435291200,0.000821,62136.0,62135.0,0.7569332]
[1728435291603,0.000821,62136.0,62135.0,0.63635244]
[1728435292026,0.000821,62136.0,62135.0,0.64735244]
[1728435292479,0.000821,62136.0,62135.0,0.7548885]
[1728435292700,0.000821,62136.0,62135.0,0.7418885]
[1728435292929,0.000821,62136.0,62135.0,0.7428885]
[1728435293159,0.000821,62136.0,62135.0,0.62235244]
[1728435294085,0.000821,62136.0,62135.0,0.64327891]
[1728435294303,0.000821,62136.0,62135.0,0.62027891]
[1728435294511,0.000821,62136.0,62135.0,0.5961712]
[1728435294713,0.000821,62136.0,62135.0,0.49975244]
[1728435295370,0.000821,62136.0,62135.0,0.59617114]
[1728435295582,0.000821,62136.0,62135.0,0.61917114]
[1728435295804,0.000821,62136.0,62135.0,0.64327891]
[1728435296009,0.000821,62136.0,62135.0,0.64326856]
[1728435297379,0.000821,62136.0,62135.0,0.52275244]
[1728435298664,0.01587976,62136.0,62135.0,0.52275244]
[1728435298895,0.01587976,62136.0,62135.0,0.57206224]
[1728435299115,0.000821,62136.0,62135.0,0.57206224]
[1728435299328,0.000821,62136.0,62135.0,0.76400308]
[1728435299552,0.000821,62136.0,62135.0,0.61916326]
[1728435299788,0.000821,62136.0,62135.0,0.62116326]
[1728435300004,0.000821,62136.0,62135.0,0.52475244]
[1728435302461,0.000821,62136.0,62135.0,0.52889407]
[1728435302725,0.000821,62136.0,62135.0,0.52275244]
[1728435302957,0.000821,62136.0,62135.0,0.64325946]
[1728435303418,0.000821,62136.0,62135.0,0.52275244]
[1728435303636,0.000821,62136.0,62135.0,0.52919344]
[1728435303878,0.000821,62136.0,62135.0,0.53119344]
[1728435304116,0.000821,62136.0,62135.0,0.52919344]
[1728435305154,0.000821,62136.0,62135.0,0.64970161]
[1728435305626,0.000821,62136.0,62135.0,0.62560463]
[1728435306122,0.000821,62136.0,62135.0,0.49066888]
[1728435306373,0.01588174,62136.0,62135.0,0.4665668]
[1728435306610,0.01588174,62136.0,62135.0,0.41835244]
[1728435306851,0.01588174,62136.0,62135.0,0.41735244]
[1728435307064,0.01588174,62136.0,62135.0,0.31735244]
[1728435307065,0.02793179,62136.0,62135.0,0.31735244]
[1728435307303,0.02793179,62136.0,62135.0,0.32835244]
[1728435307548,0.02793179,62136.0,62135.0,0.34235244]
[1728435308340,0.02793179,62136.0,62135.0,0.33035244]
[1728435308586,0.02793179,62136.0,62135.0,0.34035244]
[1728435308845,0.02793179,62136.0,62135.0,0.32635244]
[1728435309327,0.02793179,62136.0,62135.0,0.33935244]
[1728435309810,0.02793179,62136.0,62135.0,0.183939]
[1728435310053,0.02793179,62136.0,62135.0,0.023]
[1728435310299,0.21981361,62136.0,62135.0,0.023]
[1728435310557,0.0314402,62136.0,62135.0,0.183939]
[1728435310795,0.03998441,62136.0,62135.0,0.33935244]
[1728435311036,0.03998441,62136.0,62135.0,0.32935244]
[1728435311037,0.02793413,62136.0,62135.0,0.32935244]
[1728435311559,0.02793413,62136.0,62135.0,0.42935244]
[1728435311801,0.02793413,62136.0,62135.0,0.45235244]
[1728435312040,0.02793413,62136.0,62135.0,0.53576363]
[1728435312278,0.02793413,62136.0,62135.0,0.53676363]
[1728435312515,0.02793413,62136.0,62135.0,0.53576363]
[1728435312788,0.02793413,62136.0,62135.0,0.54776363]
[1728435313242,0.02793413,62136.0,62135.0,0.54576363]
[1728435313479,0.03293413,62136.0,62135.0,0.45035244]
[1728435313718,0.02793413,62136.0,62135.0,0.44935244]
[1728435313960,0.02793413,62136.0,62135.0,0.52164247]
[1728435314205,0.02793413,62136.0,62135.0,0.51164247]
[1728435314445,0.02993413,62136.0,62135.0,0.51264247]
[1728435315144,0.02793413,62136.0,62135.0,0.51164247]
[1728435315580,0.03193413,62136.0,62135.0,0.51264247]
[1728435316060,0.02793413,62136.0,62135.0,0.51164247]
[1728435316284,0.03193413,62136.0,62135.0,0.51264247]
[1728435316510,0.03293413,62136.0,62135.0,0.51364247]
[1728435316757,0.03293413,62136.0,62135.0,0.51364267]
[1728435316968,0.02088385,62136.0,62135.0,0.51364267]
[1728435317904,0.02089519,62136.0,62135.0,0.51364267]
[1728435319475,0.03295484,62136.0,62135.0,0.23522923]
[1728435319728,0.04597032,62136.0,62135.0,0.162939]
[1728435320220,0.04947479,62136.0,62135.0,0.002]
[1728435320457,0.04847479,62136.0,62135.0,0.161939]
[1728435320694,0.04847479,62136.0,62135.0,0.167939]
[1728435320969,0.04847479,62136.0,62135.0,0.007]
[1728435321226,0.14027479,62136.0,62135.0,0.001]
[1728435321470,0.30121179,62136.0,62135.0,0.001]
[1728435321761,0.28515087,62136.0,62135.0,0.003]
[1728435322011,0.2972092,62136.0,62135.0,0.003]
[1728435322547,0.32232074,62136.0,62135.0,0.013]
[1728435322799,0.32132074,62136.0,62135.0,0.003]
[1728435323083,0.14736826,62136.0,62135.0,0.003]
[1728435323583,0.28419372,62136.0,62135.0,0.003]
[1728435324582,0.30829868,62136.0,62135.0,0.003]
[1728435325076,0.14736168,62136.0,62131.0,0.24125064]
[1728435325346,0.30981479,62135.0,62131.0,0.40220064]
[1728435325591,0.0806,62132.0,62125.0,0.001642]
[1728435325812,0.0806,62132.0,62125.0,0.162605]
[1728435325813,0.160952,62130.0,62125.0,0.162605]
[1728435326050,0.05122367,62129.0,62125.0,0.162605]
[1728435326345,0.05122367,62128.0,62125.0,0.162605]
[1728435326575,0.03915803,62127.0,62125.0,0.323572]
[1728435326903,0.00346674,62127.0,62126.0,0.160963]
[1728435327307,0.05120821,62127.0,62126.0,0.160963]
[1728435327540,0.05467495,62127.0,62126.0,0.160963]
[1728435328734,0.05567495,62127.0,62126.0,0.167963]
[1728435329677,0.05567495,62127.0,62126.0,0.160963]
[1728435329678,0.05467495,62127.0,62126.0,0.160963]
[1728435329920,0.05567495,62127.0,62126.0,0.170963]
[1728435330171,0.05567495,62127.0,62126.0,0.175963]
[1728435330658,0.03157702,62127.0,62126.0,0.170963]
[1728435330894,0.03157702,62127.0,62126.0,0.174963]
[1728435331133,0.03157702,62127.0,62126.0,0.64792708]
[1728435331365,0.01952794,62127.0,62126.0,0.77092708]
[1728435331597,0.01952794,62127.0,62126.0,0.58286186]
[1728435331598,0.001,62127.0,62126.0,0.58286186]
[1728435331828,0.001,62127.0,62126.0,0.60695457]
[1728435332093,0.001,62127.0,62126.0,0.60295457]
[1728435332376,0.33975064,62146.0,62135.0,0.243039]
[1728435332641,0.33975064,62146.0,62135.0,0.58375753]
[1728435332642,0.24125064,62146.0,62135.0,0.58375753]
[1728435332890,0.01587187,62136.0,62135.0,0.58375753]
[1728435333656,0.01587187,62136.0,62135.0,0.60675753]
[1728435333673,0.000821,62136.0,62135.0,0.60675753]
[1728435334147,0.000821,62136.0,62135.0,0.60775753]
[1728435334395,0.000821,62136.0,62135.0,0.70775753]
[1728435334614,0.000821,62136.0,62135.0,0.81300557]
[1728435335089,0.000821,62136.0,62135.0,0.70775753]
[1728435335316,0.000821,62136.0,62135.0,0.80300557]
[1728435335537,0.000821,62136.0,62135.0,0.7809193]
[1728435335760,0.000821,62136.0,62135.0,0.78092021]
[1728435337796,0.000821,62136.0,62135.0,0.78091379]
[1728435340126,0.000821,62136.0,62135.0,0.70875753]
[1728435340350,0.000821,62136.0,62135.0,0.78091379]
[1728435341019,0.000821,62136.0,62135.0,0.70875753]
[1728435343290,0.000821,62136.0,62135.0,0.78091877]
[1728435345149,0.000821,62136.0,62135.0,0.78736077]
[1728435346721,0.000821,62136.0,62135.0,0.71519953]
[1728435346942,0.000821,62136.0,62135.0,0.81141452]
[1728435347228,0.000821,62150.0,62135.0,0.81141452]
[1728435347229,0.000821,62150.0,62135.0,1.91366053]
[1728435347435,0.000821,62150.0,62149.0,0.60629624]
[1728435347655,0.000821,62150.0,62149.0,0.71362153]
[1728435348298,0.004821,62150.0,62149.0,0.71362153]
[1728435348511,0.010821,62150.0,62149.0,0.71362153]
[1728435348675,0.006821,62150.0,62149.0,0.71362153]
[1728435348923,0.004821,62150.0,62149.0,0.7227751]
[1728435349329,0.008821,62150.0,62149.0,0.7227751]
[1728435350351,0.008821,62150.0,62149.0,0.72698403]
[1728435350771,0.008821,62150.0,62149.0,0.84703958]
[1728435351640,0.008821,62150.0,62149.0,0.72698403]
[1728435351852,0.008821,62150.0,62149.0,0.84700085]
[1728435353632,0.008821,62150.0,62149.0,0.82294697]
[1728435354146,0.008821,62150.0,62149.0,0.51327938]
[1728435354349,0.008821,62150.0,62149.0,0.41731644]
[1728435356058,0.008821,62150.0,62149.0,0.44031644]
[1728435360092,0.008821,62150.0,62149.0,0.86687217]
[1728435360321,0.008821,62150.0,62149.0,0.62562153]
[1728435360781,0.004821,62150.0,62149.0,0.62562153]
[1728435361010,0.000821,62150.0,62149.0,0.43931644]
[1728435361482,0.000821,62150.0,62149.0,0.86587217]
[1728435361712,0.000821,62150.0,62149.0,0.70922639]
[1728435361970,0.000821,62150.0,62149.0,0.75570137]
[1728435363677,0.000821,62150.0,62149.0,0.70772153]
[1728435364305,0.000821,62150.0,62149.0,0.70572153]
[1728435364547,0.000821,62150.0,62149.0,0.43931644]
[1728435366176,0.000821,62150.0,62135.0,0.05442184]
[1728435366177,0.19306212,62150.0,62135.0,0.05442184]
[1728435366399,0.06499537,62149.0,62140.0,0.321853]
[1728435366633,0.02707655,62148.0,62140.0,0.47726644]
[1728435366857,0.04122793,62149.0,62140.0,0.47726644]
[1728435366858,0.03037375,62147.0,62140.0,0.47726644]
[1728435367079,0.03037375,62147.0,62142.0,0.16092]
[1728435367080,0.02707655,62146.0,62142.0,0.16092]
[1728435367296,0.03036594,62145.0,62135.0,0.321878]
[1728435367524,0.03036594,62145.0,62131.0,0.321897]
[1728435367525,0.02707655,62144.0,62137.0,0.160933]
[1728435367755,0.03791882,62149.0,62137.0,0.160933]
[1728435367756,0.03035813,62143.0,62142.0,0.160921]
[1728435368226,0.01504112,62143.0,62142.0,0.34622609]
[1728435368493,0.000821,62150.0,62149.0,0.160903]
[1728435368724,0.01586226,62150.0,62149.0,0.31631644]
[1728435370030,0.02789665,62150.0,62149.0,0.31631644]
[1728435370699,0.01586226,62150.0,62149.0,0.31631644]
[1728435372066,0.01586226,62150.0,62149.0,0.160903]
[1728435372306,0.02790072,62150.0,62149.0,0.160903]
[1728435373190,0.02790117,62150.0,62149.0,0.160903]
[1728435376645,0.01586226,62150.0,62149.0,0.31631644]
[1728435377169,0.01586226,62150.0,62149.0,0.39811644]
[1728435377634,0.01586226,62150.0,62149.0,0.46920843]
[1728435378072,0.01587608,62150.0,62149.0,0.42111644]
[1728435378309,0.01587608,62150.0,62149.0,0.49325934]
[1728435378310,0.000821,62150.0,62149.0,0.49325934]
[1728435378542,0.000821,62150.0,62149.0,0.52611644]
[1728435378789,0.000821,62150.0,62149.0,0.64634642]
[1728435379246,0.24125064,62179.0,62149.0,0.64634642]
[1728435379247,0.24125064,62179.0,62177.0,0.160831]
[1728435379526,0.00423528,62178.0,62177.0,0.31624444]
[1728435379741,0.000821,62178.0,62177.0,0.31624444]
[1728435380189,0.01587293,62178.0,62177.0,0.31624444]
[1728435380866,0.02791434,62178.0,62177.0,0.31624444]
[1728435381528,0.02790771,62178.0,62177.0,0.31624444]
[1728435381735,0.01586446,62178.0,62177.0,0.31624444]
[1728435381962,0.02789923,62178.0,62177.0,0.31624444]
[1728435382393,0.02789329,62178.0,62177.0,0.31624444]
[1728435382609,0.01586446,62178.0,62177.0,0.31624444]
[1728435385289,0.01586446,62178.0,62177.0,0.160831]
[1728435385500,0.01586446,62178.0,62174.0,0.160837]
[1728435385501,0.02788015,62178.0,62174.0,0.160837]
[1728435385772,0.02788015,62178.0,62172.0,0.321685]
[1728435385773,0.03046953,62177.0,62172.0,0.321685]
[1728435385950,0.01504346,62176.0,62175.0,0.160835]
[1728435386381,0.02705739,62176.0,62175.0,0.160835]
[1728435386600,0.02705739,62176.0,62171.0,0.321693]
[1728435386601,0.01201393,62176.0,62171.0,0.321693]
[1728435386813,0.01201393,62176.0,62173.0,0.16084]
[1728435386814,0.01501766,62175.0,62173.0,0.16084]
[1728435387032,0.01501766,62174.0,62173.0,0.16084]
[1728435387254,0.01841634,62174.0,62172.0,0.160842]
[1728435387485,0.02703159,62173.0,62172.0,0.160842]
[1728435388178,0.02703159,62173.0,62169.0,0.321702]
[1728435388395,0.02703159,62172.0,62171.0,0.160846]
[1728435388626,0.03042246,62172.0,62171.0,0.160846]
[1728435389088,0.02703159,62172.0,62171.0,0.160846]
[1728435389723,0.03042609,62172.0,62171.0,0.160846]
[1728435389949,0.02703159,62172.0,62171.0,0.160846]
[1728435390163,0.01501766,62172.0,62171.0,0.160846]
[1728435390384,0.0270307,62172.0,62171.0,0.160846]
[1728435391082,0.0304252,62172.0,62171.0,0.160846]
[1728435391532,0.0270307,62172.0,62171.0,0.160846]
[1728435391954,0.0270307,62172.0,62171.0,0.31625944]
[1728435392196,0.01501766,62172.0,62171.0,0.51705944]
[1728435392413,0.000821,62177.0,62176.0,0.160833]
[1728435392651,0.000821,62177.0,62176.0,0.31624644]
[1728435397085,0.000821,62177.0,62176.0,0.160833]
[1728435399063,0.015827,62177.0,62174.0,0.160838]
[1728435399284,0.01842156,62176.0,62175.0,0.160836]
[1728435399933,0.0304295,62176.0,62165.0,0.32172]
[1728435400156,0.02701394,62175.0,62171.0,0.32169]
[1728435400369,0.02701394,62174.0,62172.0,0.482531]
[1728435400584,0.02701394,62173.0,62172.0,0.160844]
[1728435400999,0.03042804,62173.0,62172.0,0.160844]
[1728435401485,0.02701394,62173.0,62172.0,0.160844]
[1728435402124,0.03042561,62173.0,62172.0,0.160844]
[1728435403907,0.02701394,62173.0,62172.0,0.160844]
[1728435404330,0.000821,62177.0,62173.0,0.16084]
[1728435404545,0.000821,62177.0,62172.0,0.160842]
[1728435404546,0.01503037,62173.0,62172.0,0.160842]
[1728435404752,0.01202429,62173.0,62172.0,0.160842]
[1728435404962,0.02705466,62173.0,62172.0,0.160842]
[1728435407352,0.03046633,62173.0,62172.0,0.160842]
[1728435408247,0.02705466,62173.0,62172.0,0.160842]
[1728435409123,0.02705466,62173.0,62172.0,0.239642]
[1728435411338,0.000821,62177.0,62176.0,0.160833]